bitfinex/quotes_SOLUSD_20220210
["timestamp","ask_amount","ask_price","bid_price","bid_amount"]
[1644483264505,66.03837611,112.71,112.65,13.3424]
[1644483264704,66.06237611,112.71,112.65,13.3424]
[1644483265003,1.29043474,112.71,112.65,13.3424]
[1644483265204,1.29043474,112.71,112.65,27.95299663]
[1644483265405,1.26643474,112.72,112.65,33.95299663]
[1644483266104,46.69505557,112.72,112.67,13.314]
[1644483266304,46.71905557,112.72,112.67,13.314]
[1644483266504,1.26643474,112.71,112.67,13.314]
[1644483267306,1.26643474,112.71,112.67,61.93549016]
[1644483268510,1.26643474,112.71,112.67,13.314]
[1644483269511,1.26643474,112.71,112.67,48.24525541]
[1644483269911,1.26643474,112.72,112.67,48.24525541]
[1644483271812,1.29043474,112.73,112.67,48.49525541]
[1644483272018,1.26643474,112.73,112.68,22.72]
[1644483272212,1.26643474,112.73,112.68,36.035]
[1644483275116,1.26643474,112.72,112.67,13.3162]
[1644483275417,1.29043474,112.72,112.67,13.3162]
[1644483276217,1.29043474,112.73,112.67,58.13296178]
[1644483276416,1.26643474,112.73,112.67,58.13296178]
[1644483276617,1.26643474,112.73,112.68,22.6524]
[1644483276916,1.26643474,112.73,112.68,35.9671]
[1644483283431,14.58273474,112.73,112.67,13.3163]
[1644483283633,1.29043474,112.72,112.67,13.3163]
[1644483283834,1.26643474,112.72,112.67,13.3163]
[1644483284033,1.29043474,112.72,112.67,13.3163]
[1644483284435,41.45528697,112.71,112.66,13.3175]
[1644483284834,42.72172171,112.71,112.66,13.3175]
[1644483285235,66.06772171,112.71,112.66,13.3175]
[1644483291365,24.61243474,112.71,112.66,13.3175]
[1644483292362,64.04845593,112.71,112.66,13.3175]
[1644483292561,1.26643474,112.71,112.66,13.3175]
[1644483292761,0.024,112.73,112.66,13.3175]
[1644483292762,1.26643474,112.72,112.67,24.053]
[1644483292962,1.26643474,112.72,112.68,13.3144]
[1644483293262,1.29043474,112.72,112.68,13.3144]
[1644483293462,1.26643474,112.72,112.68,20.83207535]
[1644483299371,1.26643474,112.72,112.68,13.3144]
[1644483315009,2.52994329,112.75,112.69,89.46]
[1644483315209,2.52994329,112.79,112.7,93.374]
[1644483315411,2.53210146,112.81,112.71,48.8225]
[1644483315609,345.54908005,112.83,112.73,155.81]
[1644483315811,345.54908005,112.83,112.74,26.80089761]
[1644483316210,343.01913676,112.83,112.76,35.74513978]
[1644483316409,343.01913676,112.83,112.77,12.46]
[1644483316609,37.87698321,112.82,112.77,16.892]
[1644483316812,37.87698321,112.82,112.77,12.46]
[1644483317211,37.87698321,112.82,112.75,12.46]
[1644483318709,37.87698321,112.82,112.75,25.7657]
[1644483320514,37.87698321,112.82,112.75,30.1987]
[1644483321214,37.87698321,112.82,112.75,16.893]
[1644483321414,37.87698321,112.82,112.75,4.433]
[1644483321619,37.87698321,112.82,112.67,23.1026]
[1644483321819,5.05055797,112.81,112.68,12.46]
[1644483322018,5.05055797,112.81,112.69,48.2841]
[1644483322019,25.57104329,112.8,112.69,48.2841]
[1644483322219,78.75275111,112.8,112.69,89.9871769]
[1644483323824,13.3123,112.78,112.7,13.3108]
[1644483324124,45.45009455,112.77,112.7,13.3108]
[1644483326828,58.76289455,112.77,112.69,48.2841]
[1644483327427,58.76289455,112.77,112.68,4.434]
[1644483328731,58.76289455,112.77,112.68,17.7481]
[1644483328928,58.76289455,112.77,112.68,13.3141]
[1644483329729,58.76289455,112.77,112.67,76.54717254]
[1644483330330,23.9377,112.76,112.67,76.54717254]
[1644483330530,47.97197263,112.75,112.67,89.86227254]
[1644483330732,0.024,112.74,112.67,89.86227254]
[1644483332033,0.024,112.74,112.67,42.5358]
[1644483333233,0.024,112.74,112.67,38.1018]
[1644483335335,0.024,112.74,112.68,4.436]
[1644483335534,61.31107263,112.75,112.68,4.436]
[1644483335735,61.31107263,112.75,112.68,10.40532237]
[1644483335936,47.99597263,112.75,112.68,23.71932237]
[1644483337037,47.99597263,112.75,112.68,17.75]
[1644483338240,47.99597263,112.75,112.68,13.314]
[1644483338439,61.31087263,112.75,112.68,13.314]
[1644483343567,47.99597263,112.75,112.68,13.314]
[1644483343769,47.99597263,112.75,112.68,13.564]
[1644483343969,47.99597263,112.75,112.68,13.314]
[1644483345167,47.99597263,112.75,112.68,21.66921707]
[1644483345768,47.99597263,112.75,112.68,26.10321707]
[1644483347772,47.99597263,112.75,112.68,17.748]
[1644483347972,47.99597263,112.75,112.68,13.314]
[1644483349673,47.99597263,112.75,112.69,15.70035743]
[1644483349881,47.99597263,112.75,112.69,52.42155743]
[1644483350072,47.99597263,112.75,112.69,36.7212]
[1644483351675,47.99597263,112.75,112.69,45.68615497]
[1644483352676,47.99597263,112.75,112.69,36.7212]
[1644483355282,47.99597263,112.75,112.69,41.03707238]
[1644483355681,47.99597263,112.75,112.69,36.7212]
[1644483361885,0.024,112.75,112.71,13.311]
[1644483362084,0.024,112.76,112.71,13.311]
[1644483362285,27.05644329,112.78,112.72,23.1117]
[1644483362488,0.024,112.77,112.72,23.1117]
[1644483362686,24.5505,112.78,112.72,23.1117]
[1644483362885,24.5505,112.78,112.72,36.4214]
[1644483362886,47.43092794,112.77,112.72,36.4214]
[1644483363086,47.43092794,112.77,112.72,23.1117]
[1644483364689,60.74252794,112.77,112.72,23.1117]
[1644483367614,60.74252794,112.77,112.7,13.3126]
[1644483367815,0.024,112.76,112.7,13.3126]
[1644483368014,13.3377,112.76,112.69,4.434]
[1644483368214,22.876,112.75,112.69,27.1655]
[1644483368514,46.58259143,112.74,112.69,27.1655]
[1644483369414,46.58259143,112.74,112.69,40.4792]
[1644483369814,46.58259143,112.74,112.69,36.0452]
[1644483370015,46.58259143,112.74,112.69,22.7315]
[1644483370616,46.58259143,112.74,112.67,4.434]
[1644483370817,46.58259143,112.74,112.65,23.2488]
[1644483371816,59.89769143,112.74,112.67,13.3161]
[1644483374724,59.89769143,112.74,112.68,24.3096]
[1644483374923,59.89769143,112.74,112.66,13.3174]
[1644483375322,59.89769143,112.74,112.66,37.627]
[1644483376631,59.89769143,112.74,112.67,0.024]
[1644483382133,59.89769143,112.74,112.67,27.27091045]
[1644483382737,36.2142,112.75,112.67,27.27091045]
[1644483382938,36.2142,112.75,112.67,39.73091045]
[1644483383133,22.9,112.75,112.67,41.63227773]
[1644483383343,22.9,112.75,112.68,23.1867]
[1644483383535,22.876,112.75,112.7,13.3121]
[1644483383735,38.74877478,112.76,112.7,13.3121]
[1644483383933,38.74877478,112.76,112.7,36.4988]
[1644483384934,24.6102,112.77,112.71,13.93041045]
[1644483385134,24.6102,112.77,112.72,13.3101]
[1644483385334,24.5862,112.77,112.72,13.3101]
[1644483385735,24.5862,112.77,112.72,36.0759]
[1644483386135,24.5862,112.77,112.71,13.3111]
[1644483386336,37.9222,112.77,112.7,22.7658]
[1644483387038,42.39014998,112.76,112.7,22.7658]
[1644483387234,42.39014998,112.76,112.7,36.0781]
[1644483387235,55.70334998,112.76,112.7,36.0781]
[1644483387436,55.70334998,112.76,112.7,22.7658]
[1644483398049,55.70334998,112.76,112.7,28.02484012]
[1644483398447,24.6102,112.77,112.7,41.33744012]
[1644483399448,68.30119666,112.77,112.7,41.33744012]
[1644483400051,68.30119666,112.77,112.7,45.77144012]
[1644483404674,0.024,112.77,112.7,47.6728074]
[1644483404875,0.024,112.78,112.71,16.894]
[1644483405075,0.024,112.78,112.73,13.3055]
[1644483405374,0.024,112.81,112.73,53.042]
[1644483405573,0.024,112.8,112.74,40.41742345]
[1644483405775,0.024,112.81,112.75,16.893]
[1644483405978,38.79841589,112.82,112.76,22.97171394]
[1644483406175,0.024,112.81,112.76,27.40471394]
[1644483406374,38.82241589,112.82,112.76,27.40471394]
[1644483407175,38.79841589,112.82,112.76,27.40471394]
[1644483408277,0.024,112.83,112.76,27.40471394]
[1644483408579,0.024,112.83,112.77,22.7576]
[1644483408776,5.07815869,112.84,112.78,13.3028]
[1644483408977,0.024,112.83,112.78,13.3028]
[1644483409176,0.024,112.84,112.78,13.3028]
[1644483409377,0.024,112.84,112.77,22.7576]
[1644483409378,49.78033786,112.84,112.77,22.7576]
[1644483409677,49.80433786,112.84,112.77,22.7576]
[1644483410079,52.33428115,112.84,112.77,22.7576]
[1644483411883,49.80433786,112.84,112.77,22.7576]
[1644483412582,52.33428115,112.84,112.77,22.7576]
[1644483412983,49.80433786,112.84,112.77,22.7576]
[1644483417190,49.80433786,112.84,112.78,35.20464081]
[1644483417191,0.024,112.84,112.78,35.20464081]
[1644483417392,24.7721,112.85,112.78,50.32664081]
[1644483417591,24.7961,112.85,112.78,50.32664081]
[1644483417992,0.024,112.86,112.78,50.32664081]
[1644483418190,0.024,112.86,112.79,24.6029]
[1644483418191,45.05605443,112.86,112.79,24.6029]
[1644483418391,45.05605443,112.86,112.8,28.18099658]
[1644483418592,45.05605443,112.86,112.8,13.2996]
[1644483422599,45.05605443,112.86,112.79,70.11349588]
[1644483422600,45.05605443,112.86,112.79,83.41499588]
[1644483422800,45.05605443,112.86,112.79,37.9044]
[1644483422999,82.99615443,112.86,112.79,37.9044]
[1644483424904,82.99615443,112.86,112.79,24.6029]
[1644483425501,13.3053,112.83,112.75,24.5565]
[1644483425703,0.024,112.82,112.75,24.5565]
[1644483425903,37.75058886,112.82,112.74,13.3075]
[1644483426103,0.024,112.81,112.74,13.3075]
[1644483426706,2.23122154,112.8,112.72,23.0086]
[1644483426905,44.3967,112.79,112.72,23.0086]
[1644483427106,56.8567,112.79,112.71,22.6277]
[1644483427308,0.024,112.78,112.72,4.434]
[1644483427510,0.024,112.79,112.73,46.73031942]
[1644483427705,13.3093,112.78,112.73,46.73031942]
[1644483427905,13.3093,112.78,112.72,4.434]
[1644483428706,13.3093,112.78,112.73,13.3086]
[1644483429306,48.4565299,112.77,112.73,13.3086]
[1644483429506,13.3333,112.78,112.73,13.3086]
[1644483429707,0.024,112.79,112.73,13.3086]
[1644483430909,50.71315462,112.79,112.73,13.3086]
[1644483432713,49.53278744,112.79,112.73,13.3086]
[1644483434037,49.53278744,112.79,112.73,16.39775563]
[1644483434237,56.8253,112.81,112.73,16.39775563]
[1644483434238,12.46,112.81,112.73,16.39775563]
[1644483434438,28.21293988,112.85,112.74,4.433]
[1644483434439,59.34714329,112.83,112.74,4.433]
[1644483434638,2.52994329,112.84,112.75,13.3056]
[1644483434838,5.05598685,112.84,112.76,24.6553]
[1644483435038,1.26310335,112.81,112.76,24.6553]
[1644483435240,38.48761417,112.8,112.76,24.6553]
[1644483435439,38.48761417,112.8,112.73,47.43965563]
[1644483435638,38.48761417,112.8,112.75,13.3062]
[1644483436139,38.48761417,112.8,112.72,24.6553]
[1644483436339,38.48761417,112.8,112.73,4.434]
[1644483436839,1.26310335,112.79,112.74,13.3073]
[1644483437039,51.79561417,112.8,112.74,13.3073]
[1644483437239,1.26310335,112.79,112.74,13.3073]
[1644483437440,1.26310335,112.79,112.73,4.434]
[1644483437639,1.26310335,112.79,112.72,24.6553]
[1644483437842,1.26310335,112.79,112.72,29.0893]
[1644483438242,14.57150335,112.79,112.73,13.3087]
[1644483438440,48.57059362,112.78,112.73,13.3087]
[1644483439740,61.88009362,112.78,112.73,13.3087]
[1644483440544,61.88009362,112.78,112.73,17.96161395]
[1644483440840,13.3095,112.78,112.73,17.96161395]
[1644483445246,13.3095,112.78,112.73,13.3087]
[1644483445247,60.42325721,112.78,112.73,13.3087]
[1644483446745,13.3095,112.78,112.73,13.3087]
[1644483448551,13.3095,112.78,112.74,14.3026685]
[1644483448949,14.59520335,112.79,112.74,14.3026685]
[1644483449350,14.59520335,112.79,112.74,27.6105685]
[1644483450650,0.024,112.79,112.74,27.6105685]
[1644483450850,0.024,112.81,112.74,40.3205685]
[1644483451054,1.28710335,112.82,112.77,13.3029]
[1644483451252,1.26310335,112.82,112.77,13.3029]
[1644483451451,38.26883285,112.82,112.77,13.3029]
[1644483452851,1.26310335,112.82,112.77,13.3029]
[1644483453954,41.22776504,112.82,112.77,13.3029]
[1644483456655,54.53296504,112.82,112.75,27.4122]
[1644483456855,1.26310335,112.81,112.75,22.9802]
[1644483457055,1.26310335,112.8,112.75,22.9802]
[1644483457656,43.99032111,112.79,112.75,22.9802]
[1644483457857,43.99032111,112.79,112.74,13.3076]
[1644483458057,45.27742446,112.79,112.71,71.4193]
[1644483458256,45.27742446,112.79,112.71,66.9863]
[1644483458660,47.508646,112.79,112.71,22.6277]
[1644483458959,40.62781555,112.77,112.72,13.3102]
[1644483463766,53.93841555,112.77,112.71,64.2732]
[1644483464068,55.2015189,112.77,112.71,4.434]
[1644483464266,1.26310335,112.76,112.71,4.434]
[1644483464767,36.0511687,112.75,112.71,4.434]
[1644483465067,49.3650687,112.75,112.69,36.0554]
[1644483466266,49.3650687,112.75,112.69,36.0314]
[1644483469277,49.3650687,112.75,112.69,22.7184]
[1644483469474,49.3650687,112.75,112.69,22.7424]
[1644483472978,24.7721,112.76,112.7,35.53178508]
[1644483473178,13.312,112.76,112.7,35.53178508]
[1644483473378,1.26310335,112.78,112.7,35.55578508]
[1644483473580,1.26310335,112.78,112.71,23.4046]
[1644483474478,13.3124,112.76,112.71,23.4046]
[1644483474779,39.22211117,112.75,112.71,23.4046]
[1644483475396,39.22211117,112.75,112.7,13.3124]
[1644483478699,52.53511117,112.75,112.69,13.3373]
[1644483486911,53.79821452,112.75,112.69,13.3373]
[1644483491616,53.79821452,112.75,112.7,4.434]
[1644483491617,40.48521452,112.75,112.7,4.434]
[1644483491816,39.22211117,112.75,112.7,4.458]
[1644483492019,39.22211117,112.75,112.7,17.7697]
[1644483493520,39.22211117,112.75,112.7,13.3357]
[1644483494420,1.26310335,112.76,112.7,13.3357]
[1644483495222,1.26310335,112.75,112.7,13.3357]
[1644483495421,44.99322448,112.75,112.71,0.024]
[1644483495621,44.99322448,112.75,112.71,13.3353]
[1644483495821,43.73012113,112.75,112.71,13.3113]
[1644483497925,1.26310335,112.76,112.71,13.3113]
[1644483498122,1.26310335,112.76,112.71,13.3353]
[1644483499424,47.50087456,112.75,112.71,13.3353]
[1644483501548,48.76397791,112.75,112.71,13.3353]
[1644483505632,47.50087456,112.75,112.71,13.3353]
[1644483506635,48.76397791,112.75,112.71,13.3353]
[1644483507933,47.50087456,112.75,112.71,13.3353]
[1644483508834,48.76397791,112.75,112.71,13.3353]
[1644483510757,48.76397791,112.75,112.71,0.024]
[1644483510960,48.76397791,112.75,112.7,37.0646]
[1644483511158,62.07667791,112.75,112.7,37.0646]
[1644483514061,62.07667791,112.75,112.7,23.7521]
[1644483514262,62.07667791,112.75,112.7,23.7761]
[1644483514663,1.26310335,112.74,112.7,23.7761]
[1644483514862,37.49061328,112.73,112.7,23.7521]
[1644483515063,37.49061328,112.73,112.69,13.3137]
[1644483516264,50.80571328,112.73,112.68,24.0906]
[1644483516464,50.80571328,112.73,112.68,37.3814]
[1644483520571,52.06881663,112.73,112.68,24.0666]
[1644483520772,52.06881663,112.73,112.68,24.0906]
[1644483521675,52.06881663,112.73,112.68,37.4059]
[1644483521875,50.80571328,112.73,112.68,37.4059]
[1644483523176,50.80571328,112.73,112.68,24.0906]
[1644483523378,52.06881663,112.73,112.68,0.024]
[1644483523579,1.26310335,112.72,112.67,0.024]
[1644483523776,1.26310335,112.72,112.61,13.7169408]
[1644483523777,1.26310335,112.71,112.68,0.024]
[1644483523977,13.3191,112.7,112.65,0.024]
[1644483524178,44.4622884,112.7,112.63,37.65260479]
[1644483524880,44.4622884,112.7,112.65,13.3181]
[1644483525277,44.4622884,112.7,112.65,13.3421]
[1644483527280,57.7812884,112.7,112.65,0.024]
[1644483527482,57.7812884,112.7,112.64,37.5104]
[1644483528380,57.7812884,112.7,112.64,37.5344]
[1644483529082,57.7812884,112.7,112.64,37.5104]
[1644483529483,57.7812884,112.7,112.64,37.5344]
[1644483531085,57.7812884,112.7,112.64,24.2151]
[1644483534787,57.7812884,112.7,112.64,37.5343]
[1644483534986,57.7812884,112.7,112.64,37.5103]
[1644483535412,57.7812884,112.7,112.64,37.5343]
[1644483537609,57.7812884,112.7,112.64,37.5103]
[1644483538809,57.7812884,112.7,112.64,24.1911]
[1644483539009,57.7812884,112.7,112.64,24.2151]
[1644483541008,57.7812884,112.7,112.64,37.5344]
[1644483542921,57.7812884,112.7,112.64,37.5104]
[1644483546323,59.04439175,112.7,112.64,24.1911]
[1644483546525,59.04439175,112.7,112.64,24.2151]
[1644483550233,1.26310335,112.69,112.64,0.024]
[1644483550432,14.58650335,112.68,112.62,0.024]
[1644483551034,38.73108829,112.67,112.62,0.024]
[1644483551232,38.73108829,112.67,112.61,37.4077]
[1644483552833,52.05338829,112.67,112.61,37.4077]
[1644483553835,53.31649164,112.67,112.61,37.4077]
[1644483554234,75.94269164,112.67,112.61,37.4077]
[1644483554636,74.67958829,112.67,112.61,37.4077]
[1644483557242,75.94269164,112.67,112.61,37.4077]
[1644483557742,74.67958829,112.67,112.61,37.4077]
[1644483559147,75.94269164,112.67,112.61,37.4077]
[1644483559343,74.67958829,112.67,112.61,37.4077]
[1644483559544,75.94269164,112.67,112.61,37.4077]
[1644483560045,74.67958829,112.67,112.61,37.4077]
[1644483560346,74.67958829,112.67,112.61,41.8457]
[1644483564368,52.05338829,112.67,112.61,41.8457]
[1644483564967,52.05338829,112.67,112.61,58.3903404]
[1644483565168,38.73108829,112.67,112.61,58.6403404]
[1644483566266,38.73108829,112.67,112.61,42.0957]
[1644483567370,38.73108829,112.67,112.61,78.23280659]
[1644483567870,38.73108829,112.67,112.61,73.77080659]
[1644483568070,14.58210335,112.69,112.61,73.79480659]
[1644483568270,14.58210335,112.69,112.62,4.462]
[1644483568472,14.58210335,112.69,112.64,13.3193]
[1644483569274,60.15252321,112.69,112.64,13.3193]
[1644483569476,46.83352321,112.69,112.64,13.3193]
[1644483570178,45.57041986,112.69,112.64,13.3193]
[1644483570778,14.58140335,112.7,112.64,13.3193]
[1644483570981,14.58140335,112.7,112.64,13.3433]
[1644483571679,49.34883341,112.7,112.64,13.3433]
[1644483573682,1.26310335,112.7,112.65,4.43814127]
[1644483573884,1.26310335,112.71,112.66,30.2121]
[1644483574082,1.26310335,112.73,112.66,30.2121]
[1644483574283,27.42274329,112.76,112.66,30.2121]
[1644483574284,1.26310335,112.74,112.67,24.9051]
[1644483574483,1.26310335,112.74,112.67,37.3651]
[1644483574683,1.26310335,112.73,112.67,24.9051]
[1644483574885,1.26310335,112.72,112.67,24.9051]
[1644483575383,39.02644297,112.71,112.65,0.024]
[1644483575584,39.02644297,112.71,112.64,24.822]
[1644483575784,39.02644297,112.71,112.64,29.509]
[1644483575984,39.02644297,112.71,112.65,0.024]
[1644483576584,40.28954632,112.71,112.65,0.024]
[1644483576986,53.60724632,112.71,112.65,13.3419]
[1644483590897,53.60724632,112.71,112.65,13.31530524]
[1644483595203,1.26310335,112.7,112.65,13.31530524]
[1644483600042,1.26310335,112.7,112.65,28.61989237]
[1644483600241,1.26310335,112.71,112.67,13.3129]
[1644483600439,1.26310335,112.72,112.67,13.3129]
[1644483600639,1.26310335,112.72,112.68,35.7565]
[1644483600839,42.09253123,112.71,112.68,35.7565]
[1644483601040,42.09253123,112.71,112.69,3.03219997]
[1644483601242,42.09253123,112.71,112.69,16.34369997]
[1644483601440,42.09253123,112.71,112.69,3.03219997]
[1644483601842,42.09253123,112.71,112.68,23.2965]
[1644483604745,1.26310335,112.72,112.68,36.6115]
[1644483605148,1.26310335,112.73,112.68,36.6115]
[1644483606346,24.52700335,112.74,112.68,36.6115]
[1644483606747,1.26310335,112.73,112.68,36.6115]
[1644483608048,1.26310335,112.74,112.7,13.3112]
[1644483608248,1.26310335,112.75,112.7,13.3112]
[1644483609048,1.26310335,112.76,112.71,4.434]
[1644483609249,0.024,112.77,112.72,13.3076]
[1644483609250,1.26310335,112.77,112.72,13.3076]
[1644483609449,29.89261452,112.74,112.72,13.3076]
[1644483609651,29.89261452,112.74,112.73,3.03219997]
[1644483609849,29.89261452,112.74,112.73,11.10019997]
[1644483610253,13.68781452,112.74,112.73,24.65709997]
[1644483611857,13.68781452,112.74,112.73,26.39696033]
[1644483613058,13.68781452,112.74,112.73,30.83096033]
[1644483614078,13.68781452,112.74,112.73,26.39696033]
[1644483614777,0.024,112.79,112.73,26.39696033]
[1644483614976,13.68781452,112.76,112.73,49.89706033]
[1644483615177,13.68781452,112.76,112.74,4.434]
[1644483615377,13.68781452,112.76,112.75,13.3052]
[1644483615778,13.68781452,112.76,112.75,16.33739997]
[1644483616180,13.68781452,112.76,112.75,18.66870985]
[1644483617980,62.08202586,112.76,112.75,18.66870985]
[1644483618382,62.08202586,112.76,112.75,15.63650988]
[1644483618582,13.68781452,112.76,112.75,13.3052]
[1644483618782,13.68781452,112.76,112.75,3.03219997]
[1644483619583,52.39837945,112.76,112.75,3.03219997]
[1644483620184,52.39837945,112.76,112.73,13.3084]
[1644483620387,13.68781452,112.76,112.74,3.14876055]
[1644483620585,0.024,112.78,112.74,3.14876055]
[1644483620786,13.68781452,112.76,112.74,3.14876055]
[1644483621386,59.29860353,112.76,112.74,3.14876055]
[1644483621786,59.29860353,112.76,112.73,13.3084]
[1644483625892,0.024,112.78,112.73,13.3084]
[1644483626090,13.68781452,112.76,112.73,13.3084]
[1644483626891,52.70213295,112.76,112.73,13.3084]
[1644483627291,13.68781452,112.76,112.73,13.3084]
[1644483627695,13.68781452,112.76,112.73,13.5584]
[1644483628298,13.68781452,112.76,112.74,0.11656058]
[1644483628497,13.68781452,112.76,112.75,13.305]
[1644483630395,13.68781452,112.76,112.75,16.33719997]
[1644483633097,13.649164,112.76,112.75,16.33719997]
[1644483633296,38.10545432,112.8,112.75,16.33719997]
[1644483633500,13.649164,112.78,112.75,16.33719997]
[1644483636207,13.649164,112.78,112.76,0.11653991]
[1644483636605,13.649164,112.78,112.76,3.03219997]
[1644483636805,13.649164,112.78,112.76,16.33739997]
[1644483637607,13.649164,112.78,112.77,0.11652957]
[1644483638009,13.649164,112.78,112.77,13.41792957]
[1644483638713,13.649164,112.78,112.77,19.41792957]
[1644483638912,0.024,112.81,112.78,56.0]
[1644483639112,1.26310335,112.82,112.79,16.33089997]
[1644483639310,1.26310335,112.83,112.79,27.12940888]
[1644483639511,1.26310335,112.84,112.8,31.17533025]
[1644483639710,1.28710335,112.84,112.81,4.431]
[1644483639911,1.26310335,112.84,112.81,4.431]
[1644483640111,1.26310335,112.85,112.81,4.431]
[1644483640715,1.26310335,112.85,112.81,17.7263]
[1644483641912,40.78012105,112.86,112.81,17.7263]
[1644483642112,1.26310335,112.86,112.81,17.7263]
[1644483642313,1.26310335,112.86,112.81,42.0696]
[1644483643114,45.68142262,112.86,112.81,42.0696]
[1644483643514,44.41831927,112.86,112.81,42.0696]
[1644483643714,45.68142262,112.86,112.81,42.0696]
[1644483643917,44.41831927,112.86,112.81,42.0696]
[1644483644416,44.41831927,112.86,112.81,37.6386]
[1644483645016,45.68142262,112.86,112.81,37.6386]
[1644483646118,45.68142262,112.86,112.81,13.2953]
[1644483647941,1.26310335,112.85,112.81,13.2953]
[1644483648142,1.26310335,112.85,112.8,13.3002]
[1644483648546,45.70542262,112.86,112.8,13.3002]
[1644483648742,1.26310335,112.85,112.8,13.3002]
[1644483649148,38.61158046,112.84,112.8,13.3002]
[1644483650544,38.61158046,112.84,112.79,24.9765]
[1644483650742,38.61158046,112.84,112.76,47.39077608]
[1644483650944,23.2072,112.83,112.77,24.6121]
[1644483651144,37.44072245,112.82,112.77,24.6121]
[1644483652747,37.44072245,112.82,112.77,24.8621]
[1644483652946,37.44072245,112.82,112.77,24.6121]
[1644483653847,37.44072245,112.82,112.77,24.8621]
[1644483654250,37.44072245,112.82,112.76,17.19957608]
[1644483654452,37.44072245,112.82,112.75,4.432]
[1644483654453,39.67194399,112.82,112.75,4.432]
[1644483654648,40.93504734,112.82,112.69,12.46]
[1644483654850,1.26310335,112.8,112.69,4.433]
[1644483655048,0.024,112.79,112.69,4.433]
[1644483655248,40.79834802,112.79,112.69,36.47959609]
[1644483655448,13.334,112.78,112.71,7.72129297]
[1644483655649,13.334,112.78,112.7,24.1343]
[1644483655849,0.024,112.77,112.68,4.434]
[1644483656249,0.024,112.77,112.68,4.684]
[1644483656654,48.43952172,112.77,112.69,22.8355]
[1644483656853,48.43952172,112.77,112.7,5.18235211]
[1644483657350,48.43952172,112.77,112.69,24.76337011]
[1644483657549,48.43952172,112.77,112.69,31.01337011]
[1644483657751,48.43952172,112.77,112.69,29.0855]
[1644483658150,48.43952172,112.77,112.69,36.3951]
[1644483658751,48.43952172,112.77,112.69,22.8355]
[1644483659554,61.74992172,112.77,112.69,22.8355]
[1644483660052,61.74992172,112.77,112.69,23.0855]
[1644483660855,61.74992172,112.77,112.69,36.3952]
[1644483662058,61.74992172,112.77,112.69,23.0855]
[1644483662958,48.43952172,112.77,112.69,27.5195]
[1644483663356,48.43952172,112.77,112.69,27.2695]
[1644483663758,48.43952172,112.77,112.69,40.579]
[1644483664759,48.43952172,112.77,112.69,40.829]
[1644483665257,48.43952172,112.77,112.69,36.395]
[1644483666261,61.74972172,112.77,112.69,22.8355]
[1644483666459,63.98094326,112.77,112.67,4.434]
[1644483666662,38.73446213,112.75,112.68,6.0]
[1644483666860,38.73446213,112.75,112.67,10.434]
[1644483667162,38.73446213,112.75,112.67,11.71842034]
[1644483667362,38.73446213,112.75,112.67,17.71842034]
[1644483667560,38.73446213,112.75,112.67,17.96842034]
[1644483667762,52.04706213,112.75,112.67,31.28022034]
[1644483669062,52.04706213,112.75,112.67,23.9958]
[1644483669463,52.04706213,112.75,112.67,23.7458]
[1644483669767,52.04706213,112.75,112.67,23.9958]
[1644483670365,52.04706213,112.75,112.67,19.5618]
[1644483671463,52.04706213,112.75,112.68,4.436]
[1644483672164,54.27828367,112.75,112.68,4.436]
[1644483672367,66.73828367,112.75,112.68,4.436]
[1644483673465,68.00138702,112.75,112.68,4.436]
[1644483673765,66.73828367,112.75,112.68,4.436]
[1644483674088,68.00138702,112.75,112.68,4.436]
[1644483674264,68.00138702,112.75,112.65,0.024]
[1644483674464,13.3181,112.72,112.65,0.024]
[1644483674666,36.1805,112.72,112.65,0.024]
[1644483674868,38.41172154,112.72,112.65,0.024]
[1644483675768,13.3201,112.7,112.65,0.024]
[1644483675965,39.93085013,112.69,112.64,0.024]
[1644483676165,39.93085013,112.69,112.62,4.461]
[1644483676366,39.93085013,112.69,112.62,10.711]
[1644483677769,53.25095013,112.69,112.62,10.711]
[1644483678371,53.25095013,112.69,112.62,10.461]
[1644483678769,53.25095013,112.69,112.62,6.024]
[1644483680071,53.25095013,112.69,112.62,0.024]